bitfinex/quotes_BTCUSD_20240803
["timestamp","ask_amount","ask_price","bid_price","bid_amount"]
[1722705586249,0.00157439,60787.0,60772.0,0.0223]
[1722705586394,0.00157439,60787.0,60780.0,0.329055]
[1722705586594,0.010208,60789.0,60787.0,0.164507]
[1722705586896,0.010208,60789.0,60788.0,0.03513492]
[1722705587316,0.010208,60789.0,60788.0,0.19964092]
[1722705587518,0.010208,60789.0,60788.0,0.84553]
[1722705587726,0.010208,60789.0,60788.0,0.52865292]
[1722705587922,0.010208,60789.0,60788.0,0.85766492]
[1722705588364,0.010208,60789.0,60788.0,1.03742416]
[1722705588576,0.010208,60789.0,60788.0,1.47643616]
[1722705588784,0.010208,60789.0,60788.0,1.49843616]
[1722705588977,0.010208,60789.0,60788.0,1.46643616]
[1722705589189,0.010208,60789.0,60788.0,1.46843616]
[1722705589389,0.010208,60789.0,60788.0,1.47843616]
[1722705589598,0.010208,60789.0,60788.0,1.46643616]
[1722705589808,0.011208,60789.0,60788.0,1.14042416]
[1722705590019,0.010208,60789.0,60788.0,0.81807507]
[1722705590222,0.010208,60789.0,60788.0,1.14708707]
[1722705590430,0.011208,60789.0,60788.0,1.15008707]
[1722705590651,0.012208,60789.0,60788.0,1.05808707]
[1722705590871,0.012208,60789.0,60788.0,0.02313492]
[1722705591082,0.013208,60789.0,60788.0,0.02613492]
[1722705591294,0.013208,60789.0,60788.0,0.507518]
[1722705591494,0.013208,60789.0,60788.0,1.32300124]
[1722705591703,0.013208,60789.0,60788.0,1.33513616]
[1722705591917,0.012208,60789.0,60788.0,1.32413616]
[1722705592091,0.012208,60789.0,60788.0,1.33513616]
[1722705592092,0.013208,60789.0,60788.0,1.33513616]
[1722705592300,0.011208,60789.0,60788.0,1.35513616]
[1722705592494,0.012208,60789.0,60788.0,1.01812416]
[1722705592702,0.011208,60789.0,60788.0,1.01512416]
[1722705592860,0.012208,60789.0,60788.0,0.02313492]
[1722705593075,0.013208,60789.0,60788.0,0.19064092]
[1722705593269,0.012208,60789.0,60788.0,0.17964092]
[1722705593478,0.010208,60789.0,60788.0,0.01213492]
[1722705593745,0.011208,60789.0,60788.0,0.02313492]
[1722705594085,0.012208,60789.0,60788.0,0.02613492]
[1722705594600,0.694717,60789.0,60788.0,0.02613492]
[1722705594803,0.201208,60789.0,60788.0,0.014]
[1722705595022,0.364711,60789.0,60788.0,0.003]
[1722705595277,0.35666724,60789.0,60775.0,0.329077]
[1722705595484,0.200208,60789.0,60788.0,0.011]
[1722705595732,0.117108,60789.0,60788.0,0.507518]
[1722705595963,0.115108,60789.0,60776.0,0.23621118]
[1722705596146,0.017208,60789.0,60788.0,0.17764092]
[1722705596369,0.023208,60789.0,60788.0,0.165506]
[1722705596560,0.017208,60789.0,60788.0,0.17764092]
[1722705596704,0.017208,60789.0,60788.0,0.52965292]
[1722705596905,0.017208,60789.0,60788.0,0.53265292]
[1722705597132,0.017208,60789.0,60788.0,0.86166492]
[1722705597370,0.010208,60789.0,60788.0,0.20264092]
[1722705597521,0.010208,60789.0,60788.0,0.86066492]
[1722705598374,0.010208,60789.0,60788.0,0.85766492]
[1722705598587,0.011208,60789.0,60788.0,0.86066492]
[1722705598786,0.011208,60789.0,60788.0,0.86266492]
[1722705598941,0.011208,60789.0,60788.0,1.19167692]
[1722705599144,0.011208,60789.0,60788.0,1.18967692]
[1722705599362,0.011208,60789.0,60788.0,0.86066492]
[1722705599633,0.011208,60789.0,60788.0,1.19467692]
[1722705599850,0.011208,60789.0,60788.0,1.35213616]
[1722705600043,0.011208,60789.0,60788.0,1.78114816]
[1722705600240,0.011208,60789.0,60788.0,1.79114816]
[1722705600449,0.011208,60789.0,60788.0,1.79314816]
[1722705600772,0.011208,60789.0,60788.0,1.12312416]
[1722705600968,0.011208,60789.0,60788.0,0.96566492]
[1722705601173,0.011208,60789.0,60788.0,0.04313492]
[1722705601343,0.259611,60789.0,60788.0,0.02013492]
[1722705601556,0.25256724,60789.0,60788.0,0.02013492]
[1722705601729,0.85097624,60789.0,60788.0,0.008]
[1722705601928,1.17898224,60789.0,60788.0,0.005]
[1722705602155,0.68547324,60789.0,60772.0,0.4675]
[1722705602366,0.07875194,60783.0,60772.0,0.4675]
[1722705602741,0.07875194,60783.0,60773.0,0.01226515]
[1722705602742,0.1888,60774.0,60773.0,0.01226515]
[1722705603091,0.1888,60774.0,60759.0,0.330078]
[1722705603298,0.48650524,60782.0,60759.0,0.330078]
[1722705603299,0.1888,60782.0,60772.0,0.07875194]
[1722705603498,0.1888,60782.0,60773.0,0.01226515]
[1722705603673,0.164529,60780.0,60772.0,0.001]
[1722705603877,0.00157439,60778.0,60774.0,0.01225646]
[1722705604073,0.48653124,60777.0,60772.0,0.001]
[1722705604284,0.164546,60773.0,60772.0,0.001]
[1722705604511,0.164545,60774.0,60772.0,0.001]
[1722705604682,0.493639,60773.0,60772.0,0.002]
[1722705604898,0.493639,60773.0,60758.0,0.4675]
[1722705604899,0.329118,60769.0,60758.0,0.4675]
[1722705605133,0.00157439,60767.0,60756.0,0.164592]
[1722705605329,0.34625924,60773.0,60749.0,0.329223]
[1722705605330,0.07875194,60765.0,60749.0,0.329223]
[1722705605530,0.07875194,60765.0,60749.0,0.329222]
[1722705605531,0.164577,60762.0,60749.0,0.329222]
[1722705605769,0.00157439,60760.0,60745.0,0.329244]
[1722705606081,1.16916624,60760.0,60739.0,0.395203]
[1722705606286,0.51084024,60760.0,60744.0,0.329246]
[1722705606466,0.1888,60760.0,60740.0,0.07875194]
[1722705606677,0.1888,60760.0,60745.0,0.00329221]
[1722705606892,0.0909,60762.0,60759.0,0.001913]
[1722705607149,0.00157439,60761.0,60759.0,0.001913]
[1722705607788,0.00157439,60761.0,60760.0,0.164581]
[1722705608001,0.00157439,60761.0,60760.0,0.516744]
[1722705608219,0.00157439,60766.0,60760.0,0.023]
[1722705608423,0.15745924,60765.0,60761.0,0.023]
[1722705608646,0.00157439,60764.0,60761.0,0.023]
[1722705608855,0.15745924,60763.0,60761.0,0.023]
[1722705609071,0.15745924,60763.0,60759.0,0.000913]
[1722705609072,0.1888,60761.0,60759.0,0.000913]
[1722705609297,0.65277763,60760.0,60759.0,0.000913]
[1722705609505,1.08036624,60760.0,60759.0,0.000913]
[1722705609732,1.40952924,60760.0,60759.0,0.000913]
[1722705609957,1.78202924,60760.0,60759.0,0.000913]
[1722705610156,0.164627,60744.0,60735.0,0.47251164]
[1722705610382,0.32927,60741.0,60736.0,0.47251164]
[1722705610609,0.1888,60747.0,60736.0,0.01258665]
[1722705610610,0.164624,60745.0,60736.0,0.01258665]
[1722705610841,0.15745924,60745.0,60736.0,0.01258665]
[1722705611056,0.1888,60747.0,60744.0,0.07875194]
[1722705611277,0.0839,60755.0,60738.0,0.0647]
[1722705611478,0.15745924,60754.0,60738.0,0.40803394]
[1722705611687,0.15745924,60754.0,60745.0,0.01250841]
[1722705611898,0.15745924,60754.0,60739.0,0.329277]
[1722705611899,0.1049,60756.0,60753.0,0.07875194]
[1722705612153,0.0839,60762.0,60753.0,0.07875194]
[1722705612355,0.00157439,60761.0,60754.0,0.03543019]
[1722705612557,0.0839,60762.0,60754.0,0.03543019]
[1722705612558,0.008,60755.0,60754.0,0.52922419]
[1722705612764,0.008,60755.0,60754.0,1.18761619]
[1722705613207,0.0839,60768.0,60754.0,0.03543019]
[1722705613435,0.00157439,60767.0,60757.0,0.329178]
[1722705613656,0.0839,60768.0,60760.0,0.164581]
[1722705613878,0.00157439,60767.0,60761.0,0.023]
[1722705614098,0.00157439,60767.0,60764.0,0.16457]
[1722705614307,0.0839,60768.0,60765.0,0.023]
[1722705614527,0.0839,60768.0,60765.0,0.03533463]
[1722705614528,0.00157439,60767.0,60765.0,0.03533463]
[1722705614753,0.0839,60768.0,60766.0,0.023]
[1722705614965,0.0839,60768.0,60765.0,0.01233463]
[1722705614966,1.49830994,60766.0,60765.0,0.01233463]
[1722705615185,0.44625924,60766.0,60743.0,0.47251164]
[1722705615390,0.44625924,60766.0,60764.0,0.001]
[1722705615391,0.00157439,60765.0,60764.0,0.001]
[1722705615611,0.1888,60766.0,60764.0,0.001]
[1722705615813,0.008,60767.0,60762.0,0.329152]
[1722705616065,0.008,60767.0,60757.0,0.07875194]
[1722705616066,0.002,60768.0,60757.0,0.07875194]
[1722705616275,0.1888,60773.0,60765.0,0.165568]
[1722705616276,0.01,60766.0,60765.0,0.165568]
[1722705616687,0.01,60766.0,60765.0,0.85013137]
[1722705616894,0.01,60766.0,60765.0,1.191602]
[1722705617119,0.01,60766.0,60765.0,1.37843795]
[1722705617572,0.0839,60786.0,60780.0,0.329055]
[1722705617812,0.00157439,60785.0,60782.0,0.164522]
[1722705618038,0.00157439,60785.0,60781.0,0.023]
[1722705618039,0.00157439,60785.0,60781.0,0.01219568]
[1722705618240,0.00157439,60785.0,60783.0,0.03517832]
[1722705618491,0.00157439,60785.0,60783.0,0.023]
[1722705618732,0.00157439,60785.0,60784.0,0.01216964]
[1722705618962,0.00157439,60785.0,60784.0,0.85775164]
[1722705619165,0.09409701,60792.0,60785.0,0.329028]
[1722705619368,0.09409701,60792.0,60788.0,0.164506]
[1722705619580,0.09409701,60792.0,60786.0,0.023]
[1722705619581,0.329017,60787.0,60786.0,0.01215228]
[1722705619789,0.329017,60787.0,60783.0,0.001]
[1722705619790,0.493549,60784.0,60783.0,0.001]
[1722705620008,0.98004124,60784.0,60783.0,0.001]
[1722705620217,0.98004124,60784.0,60762.0,0.47251164]
[1722705620218,0.01,60781.0,60763.0,0.09791269]
[1722705620423,0.1049,60765.0,60762.0,0.47251164]
[1722705620636,0.26235924,60765.0,60751.0,0.42712369]
[1722705620845,0.26235924,60765.0,60752.0,0.164602]
[1722705620846,0.15745924,60764.0,60752.0,0.164602]
[1722705621060,0.164585,60759.0,60747.0,0.73002969]
[1722705621271,0.164574,60763.0,60751.0,0.164605]
[1722705621487,0.15745924,60764.0,60746.0,0.09791269]
[1722705621694,0.1049,60765.0,60761.0,0.164578]
[1722705621897,0.1049,60765.0,60758.0,0.164585]
[1722705622105,0.1049,60765.0,60760.0,0.329159]
[1722705622106,0.1119,60765.0,60760.0,0.329159]
[1722705622312,0.15745924,60764.0,60759.0,0.023]
[1722705622527,0.164603,60752.0,60751.0,0.001]
[1722705622749,0.329174,60758.0,60751.0,0.001]
[1722705622951,0.2857,60763.0,60746.0,0.001]
[1722705622952,0.1857,60751.0,60746.0,0.001]
[1722705623153,0.164617,60747.0,60746.0,0.001]
[1722705623355,0.98054424,60747.0,60746.0,0.001]
[1722705623591,0.65131024,60747.0,60746.0,0.001]
[1722705623794,1.16624424,60747.0,60746.0,0.001]
[1722705624013,1.16624424,60747.0,60737.0,0.4675]
[1722705624014,0.164632,60742.0,60737.0,0.4675]
[1722705624235,0.15745924,60746.0,60734.0,0.329304]
[1722705624452,0.1857,60747.0,60732.0,0.07875194]
[1722705624662,0.1857,60747.0,60737.0,0.329288]
[1722705624871,0.1857,60747.0,60732.0,0.23621118]
[1722705625092,0.1857,60747.0,60725.0,0.54625194]
[1722705625093,0.34515924,60747.0,60746.0,0.004]
[1722705625534,0.50877624,60747.0,60746.0,0.023]
[1722705625743,0.34515924,60747.0,60746.0,0.03549972]
[1722705625954,0.67339324,60747.0,60746.0,0.023]
[1722705626185,0.34415924,60747.0,60746.0,0.023]
[1722705626391,0.34415924,60747.0,60739.0,0.164636]
[1722705626392,0.002,60747.0,60740.0,0.023]
[1722705626803,0.002,60747.0,60741.0,0.01254318]
[1722705627012,0.329256,60743.0,60741.0,0.01254318]
[1722705627218,0.15745924,60743.0,60725.0,0.55618795]
[1722705627475,0.15745924,60742.0,60725.0,0.00993601]
[1722705627692,0.1,60741.0,60726.0,0.01267361]
[1722705627908,0.329299,60735.0,60726.0,0.01267361]
[1722705628110,0.329311,60733.0,60720.0,0.16469]
[1722705628320,0.164656,60733.0,60727.0,0.01266491]
[1722705628523,0.15745924,60734.0,60727.0,0.01266491]
[1722705628731,0.15745924,60734.0,60720.0,0.164689]
[1722705628932,0.15745924,60734.0,60714.0,0.48686824]
[1722705628933,0.15745924,60734.0,60728.0,0.01265621]
[1722705629105,0.679696,60729.0,60728.0,0.01265621]
[1722705629343,0.34315924,60729.0,60717.0,0.164697]
[1722705629547,0.34315924,60729.0,60718.0,0.164693]
[1722705629548,0.15745924,60728.0,60718.0,0.164693]
[1722705629766,0.15745924,60728.0,60716.0,0.1647]
[1722705629972,0.15745924,60728.0,60717.0,0.164697]
[1722705630175,0.15745924,60728.0,60715.0,0.07875194]
[1722705630381,0.1857,60729.0,60722.0,0.07875194]
[1722705630803,0.0843,60732.0,60722.0,0.40812094]
[1722705631016,0.0843,60732.0,60722.0,0.07875194]
[1722705631225,0.15745924,60731.0,60711.0,0.01003716]
[1722705631430,0.48678124,60731.0,60712.0,0.352423]
[1722705631638,0.02,60728.0,60712.0,0.023]
[1722705631839,0.164684,60723.0,60711.0,0.164714]
[1722705632045,0.164684,60723.0,60709.0,0.023]
[1722705632046,0.164674,60726.0,60715.0,0.164703]
[1722705632256,0.15745924,60726.0,60716.0,0.023]
[1722705632469,0.0863,60732.0,60719.0,0.164691]
[1722705632678,0.0863,60732.0,60720.0,0.023]
[1722705632679,0.164672,60727.0,60720.0,0.023]
[1722705632893,0.164703,60716.0,60705.0,0.16473]
[1722705633106,0.329394,60718.0,60707.0,0.164725]
[1722705633107,0.0852,60717.0,60707.0,0.164725]
[1722705633313,0.1015,60714.0,60702.0,0.164738]
[1722705633526,0.15745924,60713.0,60703.0,0.07875194]
[1722705633735,0.15745924,60713.0,60704.0,0.329466]
[1722705633951,0.15745924,60713.0,60704.0,0.164733]
[1722705634162,0.15745924,60713.0,60703.0,0.07875194]
[1722705634163,0.1015,60714.0,60711.0,0.07875194]
[1722705634409,0.1015,60714.0,60703.0,0.07875194]
[1722705634619,0.1015,60714.0,60710.0,0.07875194]
[1722705634827,0.1015,60714.0,60710.0,0.164715]
[1722705635055,0.1015,60714.0,60707.0,0.329449]
[1722705635056,0.1015,60714.0,60711.0,0.023]
[1722705635259,0.266206,60714.0,60708.0,0.023]
[1722705635475,0.15845924,60713.0,60708.0,0.023]
[1722705635878,0.001,60713.0,60709.0,0.07875194]
[1722705636094,0.1015,60714.0,60710.0,0.023]
[1722705636095,0.1025,60714.0,60710.0,0.023]
[1722705636509,0.0852,60717.0,60710.0,0.023]
[1722705636730,0.0852,60717.0,60707.0,0.164724]
[1722705636931,0.15745924,60716.0,60708.0,0.023]
[1722705637147,0.329415,60714.0,60704.0,0.023]
[1722705637348,0.15745924,60716.0,60700.0,4e-05]
[1722705637349,0.329439,60710.0,60700.0,4e-05]
[1722705637569,0.329405,60716.0,60700.0,4e-05]
[1722705637570,0.25895924,60709.0,60700.0,4e-05]
[1722705637802,0.164726,60707.0,60700.0,4e-05]
[1722705638023,0.164727,60707.0,60700.0,4e-05]
[1722705638234,0.58840024,60709.0,60700.0,4e-05]
[1722705638235,0.15745924,60706.0,60700.0,4e-05]
[1722705638439,0.164741,60701.0,60700.0,4e-05]
[1722705638644,0.42370024,60701.0,60700.0,4e-05]
[1722705638913,0.25895924,60701.0,60700.0,4e-05]
[1722705639118,0.1015,60701.0,60700.0,4e-05]
[1722705639321,0.1015,60701.0,60700.0,0.00104]
[1722705639322,0.25895924,60701.0,60700.0,0.00104]
[1722705639539,0.1015,60701.0,60700.0,0.00711932]
[1722705639762,0.0852,60705.0,60700.0,0.00104]
[1722705639988,0.001,60706.0,60705.0,0.164731]
[1722705640202,0.001,60706.0,60700.0,0.00104]
[1722705640660,0.001,60706.0,60702.0,0.164739]
[1722705640859,0.001,60706.0,60703.0,0.023]
[1722705641073,0.001,60706.0,60703.0,0.02907266]
[1722705641286,0.1015,60709.0,60704.0,0.023]
[1722705641287,0.164731,60705.0,60704.0,0.023]
[1722705641504,0.4942,60704.0,60703.0,0.00607266]
[1722705641721,0.15745924,60704.0,60700.0,4e-05]
[1722705641932,1.016707,60701.0,60700.0,4e-05]
[1722705642136,0.84468324,60701.0,60700.0,4e-05]
[1722705642346,1.17416624,60701.0,60700.0,4e-05]
[1722705642555,0.84468324,60701.0,60700.0,4e-05]
[1722705642768,1.17416624,60701.0,60700.0,4e-05]
[1722705642978,0.35045924,60701.0,60700.0,4e-05]
[1722705643419,0.193,60701.0,60700.0,4e-05]
[1722705643623,0.193,60701.0,60700.0,0.02304]
[1722705643840,0.193,60701.0,60700.0,0.00625344]
[1722705644052,0.193,60701.0,60700.0,0.10179194]
[1722705644255,0.329411,60715.0,60700.0,0.10179194]
[1722705644256,0.0852,60708.0,60700.0,0.10800538]
[1722705644474,0.0852,60708.0,60702.0,0.164738]
[1722705644679,0.0852,60708.0,60703.0,0.023]
[1722705644893,0.0852,60708.0,60707.0,0.07875194]
[1722705645103,0.0852,60708.0,60707.0,0.023]
[1722705645540,0.0862,60708.0,60707.0,0.00619791]
[1722705645657,0.251922,60708.0,60707.0,0.02919791]
[1722705645858,0.251922,60708.0,60707.0,0.023]
[1722705646057,0.164725,60707.0,60701.0,0.023]
[1722705646257,0.24365924,60708.0,60702.0,0.07875194]
[1722705646258,0.0862,60708.0,60702.0,0.07875194]
[1722705646491,0.0872,60708.0,60703.0,0.023]
[1722705646695,0.0872,60708.0,60703.0,0.02920678]
[1722705647119,0.0872,60708.0,60703.0,0.19394178]
[1722705647318,0.0862,60708.0,60703.0,0.02920678]
[1722705647738,0.15745924,60707.0,60703.0,0.02920678]
[1722705647945,0.164733,60704.0,60703.0,0.00620678]
[1722705648145,0.164741,60701.0,60700.0,4e-05]
[1722705648396,0.15745924,60701.0,60700.0,4e-05]
[1722705648749,0.32220024,60701.0,60700.0,4e-05]
[1722705648955,0.15745924,60701.0,60700.0,4e-05]
[1722705649299,0.001,60707.0,60700.0,4e-05]
[1722705649502,0.001,60707.0,60704.0,0.329466]
[1722705649704,0.001,60707.0,60706.0,0.164728]
[1722705649831,0.001,60707.0,60703.0,0.164735]
[1722705650032,0.164728,60706.0,60705.0,0.00620234]
[1722705650255,0.164731,60705.0,60704.0,0.00620456]
[1722705650451,0.494224,60701.0,60700.0,4e-05]
[1722705650709,0.98216624,60701.0,60700.0,4e-05]
[1722705650914,1.51944924,60701.0,60700.0,4e-05]
[1722705651112,1.60464924,60701.0,60700.0,0.00104]
[1722705651595,0.61620024,60701.0,60700.0,0.00104]
[1722705651789,1.27516624,60701.0,60700.0,0.00104]
[1722705652012,1.27616624,60701.0,60700.0,0.00104]
[1722705652242,0.45245924,60701.0,60700.0,0.00104]
[1722705652451,0.195,60701.0,60700.0,0.00104]
[1722705652891,0.195,60701.0,60700.0,0.00725344]
[1722705653064,0.195,60701.0,60700.0,0.02404]
[1722705653218,0.195,60701.0,60700.0,0.10279194]
[1722705653628,0.002,60701.0,60700.0,0.60323838]
[1722705653829,0.002,60701.0,60700.0,0.03025344]
[1722705654275,0.002,60701.0,60700.0,0.02404]
[1722705654475,0.002,60701.0,60700.0,0.00104]
[1722705654675,0.251941,60701.0,60700.0,0.00104]
[1722705654880,0.0872,60701.0,60700.0,0.00104]
[1722705655083,0.251941,60701.0,60700.0,0.00104]
[1722705655283,0.0872,60701.0,60700.0,0.00104]
[1722705655687,0.0872,60701.0,60700.0,0.07979194]
[1722705656056,0.0872,60701.0,60700.0,0.03025344]
[1722705656360,0.416683,60701.0,60700.0,0.02404]
[1722705656565,0.910907,60701.0,60700.0,0.02404]
[1722705656769,1.06836624,60701.0,60700.0,0.00104]
[1722705657048,1.50564924,60701.0,60700.0,0.00104]
[1722705657347,1.76378503,60701.0,60700.0,0.00104]
[1722705657850,1.76342686,60701.0,60700.0,0.00104]
[1722705658830,1.43394386,60701.0,60700.0,0.00104]
[1722705659034,1.10446086,60701.0,60700.0,0.00104]
[1722705659260,0.45245924,60701.0,60700.0,0.00104]
[1722705659459,0.94568324,60701.0,60700.0,4e-05]
[1722705659691,0.45145924,60701.0,60700.0,4e-05]
[1722705659852,0.2,60701.0,60700.0,0.07879194]
[1722705660051,0.2,60701.0,60700.0,0.10179194]
[1722705660250,0.523483,60701.0,60700.0,0.10800538]
[1722705660451,0.523483,60701.0,60700.0,0.02304]
[1722705660452,0.1088,60701.0,60700.0,0.02304]
[1722705660656,0.007,60701.0,60700.0,0.02304]
[1722705661029,0.006,60701.0,60700.0,0.10800538]
[1722705661236,0.011,60701.0,60700.0,0.27274938]
[1722705661640,0.011,60701.0,60700.0,0.60223838]
[1722705661816,0.011,60701.0,60700.0,0.93172738]
[1722705662015,0.011,60701.0,60700.0,1.41867562]
[1722705662016,0.006,60701.0,60700.0,1.41867562]
[1722705662230,0.006,60701.0,60700.0,1.45327562]
[1722705662518,0.006,60701.0,60700.0,1.88072966]
[1722705662754,0.0743,60724.0,60701.0,0.329483]
[1722705662989,0.47251164,60712.0,60707.0,0.07875194]
[1722705663224,0.47251164,60712.0,60701.0,0.4675]
[1722705663225,0.164716,60711.0,60708.0,0.00619569]
[1722705663471,0.1651,60710.0,60708.0,0.00619569]
[1722705663689,0.329818,60710.0,60700.0,0.000953]
[1722705663914,0.65199824,60710.0,60700.0,0.000953]
[1722705664115,0.001,60701.0,60700.0,0.000953]
[1722705664328,0.15745924,60709.0,60700.0,0.000953]
[1722705664529,0.1651,60710.0,60702.0,0.07875194]
[1722705664736,0.1651,60710.0,60709.0,0.07875194]
[1722705664737,0.001,60710.0,60709.0,0.07875194]
[1722705664937,0.001,60712.0,60711.0,0.329429]
[1722705665217,0.001,60712.0,60711.0,0.92532394]
[1722705665421,0.001,60712.0,60711.0,0.59589494]
[1722705665623,0.001,60712.0,60711.0,0.75335418]
[1722705666008,0.001,60712.0,60711.0,0.92532394]
[1722705666196,0.329347,60727.0,60711.0,0.43118094]
[1722705666404,0.15745924,60726.0,60712.0,0.023]
[1722705666562,0.15745924,60726.0,60712.0,0.07875194]
[1722705666563,0.00157439,60725.0,60712.0,0.07875194]
[1722705666936,0.0096597,60729.0,60716.0,0.329399]
[1722705667132,0.15903363,60728.0,60712.0,0.07875194]
[1722705667344,0.07875194,60723.0,60705.0,0.16473]
[1722705667547,0.164712,60712.0,60711.0,0.001]
[1722705667748,0.164712,60712.0,60700.0,0.000953]
[1722705667749,0.164723,60708.0,60700.0,0.000953]
[1722705667949,0.1651,60712.0,60700.0,0.000953]
[1722705668368,0.40991118,60722.0,60700.0,0.000953]
[1722705668369,0.1763,60728.0,60708.0,0.07875194]
[1722705668514,0.00157439,60736.0,60701.0,0.07875194]
[1722705668515,0.1651,60720.0,60706.0,0.0346]
[1722705668713,0.001,60712.0,60711.0,0.336429]
[1722705668924,0.001,60712.0,60711.0,0.501143]
[1722705669124,0.001,60712.0,60711.0,1.160001]
[1722705669548,0.001,60712.0,60711.0,1.183001]
[1722705669754,0.001,60712.0,60711.0,0.853572]
[1722705670272,0.001,60712.0,60711.0,1.30586487]
[1722705670474,0.00157439,60727.0,60725.0,0.164676]
[1722705670733,0.47251164,60727.0,60720.0,0.09832169]
[1722705670935,0.47251164,60727.0,60715.0,0.54625194]
[1722705670936,0.00157439,60728.0,60721.0,0.09832169]
[1722705671083,0.00157439,60734.0,60721.0,0.09832169]
[1722705671325,0.1651,60735.0,60725.0,0.164676]
[1722705671522,0.32975,60735.0,60724.0,0.164679]
[1722705671725,0.1651,60735.0,60724.0,0.329358]
[1722705671928,0.1651,60735.0,60724.0,0.164678]
[1722705672154,0.329326,60731.0,60718.0,0.09832169]
[1722705672369,0.15745924,60730.0,60719.0,0.329383]
[1722705672705,0.15745924,60731.0,60720.0,0.023]
[1722705672917,0.48678424,60731.0,60718.0,0.023]
[1722705673157,0.329337,60728.0,60717.0,0.023]
[1722705673290,0.329337,60728.0,60715.0,0.4675]
[1722705673291,0.1651,60726.0,60715.0,0.4675]
[1722705673498,0.00157439,60724.0,60715.0,0.4675]
[1722705673759,0.1651,60726.0,60715.0,0.4675]
[1722705673760,0.32939,60719.0,60715.0,0.4675]
[1722705674080,0.15745924,60723.0,60715.0,0.4675]
[1722705674278,0.15745924,60723.0,60718.0,0.001]
[1722705674544,0.164686,60722.0,60718.0,0.001]
[1722705674753,0.15745924,60721.0,60716.0,0.023]
[1722705675247,0.329381,60720.0,60717.0,0.00617573]
[1722705675448,0.329381,60720.0,60718.0,0.023]
[1722705675654,0.164693,60719.0,60718.0,0.023]
[1722705675863,0.164697,60718.0,60716.0,0.023]
[1722705676081,0.00157439,60717.0,60716.0,0.023]
[1722705676487,0.00157439,60718.0,60710.0,0.023]
[1722705676695,0.00157439,60718.0,60711.0,0.329426]
[1722705676956,0.15745924,60721.0,60715.0,0.07875194]
[1722705676957,0.00157439,60720.0,60715.0,0.07875194]
[1722705677169,0.00157439,60720.0,60719.0,0.494079]
[1722705677381,0.0908,60726.0,60719.0,0.023]
[1722705677585,0.00157439,60725.0,60719.0,0.17086229]
[1722705677790,0.00157439,60725.0,60724.0,0.164679]
[1722705677998,0.00157439,60730.0,60724.0,0.023]
[1722705678210,0.00157439,60730.0,60724.0,0.0291602]
[1722705678422,0.164674,60726.0,60725.0,0.023]
[1722705678660,0.32213324,60726.0,60725.0,0.023]
[1722705678835,0.98082924,60726.0,60725.0,0.023]
[1722705679165,0.15745924,60726.0,60725.0,0.023]
[1722705679383,0.0743,60731.0,60720.0,0.023]
[1722705679584,0.0743,60731.0,60713.0,0.796918]
[1722705679585,0.16623739,60730.0,60719.0,0.190691]
[1722705679826,0.15745924,60729.0,60719.0,0.190691]
[1722705680073,0.00157439,60730.0,60724.0,0.005]
[1722705680287,0.0908,60734.0,60728.0,0.164666]
[1722705680504,0.0743,60736.0,60729.0,0.329331]
[1722705680505,0.00157439,60733.0,60729.0,0.329331]
[1722705680729,0.002,60731.0,60729.0,0.02914912]
[1722705681132,0.002,60731.0,60730.0,0.493989]
[1722705681341,0.002,60731.0,60730.0,0.023]
[1722705681540,0.1651,60740.0,60730.0,0.3584729]
[1722705681749,0.1651,60740.0,60731.0,0.023]
[1722705681957,0.00157439,60739.0,60733.0,0.164654]
[1722705682163,0.0908,60740.0,60735.0,0.329298]
[1722705682363,0.0908,60740.0,60736.0,0.023]
[1722705682492,0.0908,60740.0,60736.0,0.0291336]
[1722705682693,0.00157439,60739.0,60736.0,0.0291336]
[1722705682892,0.15903363,60739.0,60736.0,0.023]
[1722705683315,0.164644,60737.0,60736.0,0.023]
[1722705683495,0.164653,60734.0,60730.0,0.009]
[1722705683696,0.164653,60734.0,60731.0,0.023]
[1722705683925,0.00157439,60732.0,60731.0,0.023]
[1722705684126,0.00157439,60737.0,60731.0,0.023]
[1722705684331,0.15745924,60736.0,60731.0,0.023]
[1722705684595,0.0695,60732.0,60720.0,0.4675]
[1722705684758,0.0695,60732.0,60708.0,0.07875194]
[1722705684759,0.00157439,60729.0,60714.0,1.2571]
[1722705684957,0.15745924,60731.0,60720.0,0.164689]
[1722705684958,0.00157439,60730.0,60720.0,0.164689]
[1722705685222,0.16623839,60730.0,60721.0,0.00616686]
[1722705685432,0.00157439,60730.0,60723.0,0.329362]
[1722705685644,0.00157439,60730.0,60721.0,0.00616686]
[1722705685645,0.00157439,60730.0,60729.0,0.823327]
[1722705685846,0.164618,60747.0,60725.0,0.0342]
[1722705686049,0.1585,60749.0,60733.0,0.07875194]
[1722705686280,0.1585,60749.0,60729.0,0.16360836]
[1722705686281,0.31595924,60749.0,60739.0,0.164638]
[1722705686495,0.31595924,60749.0,60734.0,0.00943064]
[1722705686703,0.065955,60758.0,60731.0,0.006]
[1722705686704,0.065955,60758.0,60731.0,0.08204505]
[1722705686918,0.07875194,60765.0,60735.0,0.00613582]
[1722705687132,0.07875194,60765.0,60736.0,0.00329234]
[1722705687133,0.001,60747.0,60736.0,0.00329234]
[1722705687302,0.06595,60762.0,60743.0,0.164627]
[1722705687303,0.1585,60753.0,60743.0,0.164627]
[1722705687533,0.1585,60764.0,60744.0,0.00329234]
[1722705687732,0.1585,60764.0,60744.0,0.02140822]
[1722705687733,0.003,60749.0,60744.0,0.02140822]
[1722705687935,0.1585,60764.0,60749.0,0.329222]
[1722705688065,0.00083,60768.0,60755.0,0.07875194]
[1722705688291,0.00083,60768.0,60764.0,0.16457]
[1722705688501,0.00083,60768.0,60767.0,0.164563]
[1722705688698,0.00083,60768.0,60767.0,1.31269121]
[1722705688900,0.00083,60768.0,60767.0,1.74459118]